fUSD/lending_fUSD_20250112
["ID","MTS","AMOUNT","RATE_DAILY","PERIOD"]
[348603338,1736667040376,-500.0,9.834e-05,2]
[348603339,1736667040386,-774.04068,9.834e-05,2]
[348603340,1736667040395,-500.0,9.834e-05,2]
[348603341,1736667040406,-915.0,9.834e-05,2]
[348603342,1736667040416,-1201.32,9.834e-05,2]
[348603343,1736667040425,-500.0,9.834e-05,2]
[348603344,1736667040434,-160.555943,9.834e-05,2]
[348603345,1736667040443,-988.31,9.834e-05,2]
[348603346,1736667040452,-1018.91,9.834e-05,2]
[348603347,1736667040461,-594.17,9.834e-05,2]
[348603348,1736667040470,-883.99,9.834e-05,2]
[348603349,1736667040478,-423.51312942,9.834e-05,2]
[348603350,1736667040488,-2167.53,9.834e-05,2]
[348603351,1736667040497,-508.33,9.835e-05,2]
[348603352,1736667040506,-500.0,9.835e-05,2]
[348603353,1736667040515,-500.0,9.835e-05,2]
[348603354,1736667040524,-610.03,9.835e-05,2]
[348603355,1736667040535,-505.00208755,9.835e-05,2]
[348603356,1736667040544,-500.0,9.835e-05,2]
[348603357,1736667040553,-500.0,9.835e-05,2]
[348603358,1736667040563,-500.0,9.835e-05,2]
[348603359,1736667040572,-950.37,9.835e-05,2]
[348603360,1736667040582,-659.75,9.835e-05,2]
[348603361,1736667040590,-744.04,9.835e-05,2]
[348603362,1736667040599,-829.84,9.835e-05,2]
[348603363,1736667040609,-557.69,9.835e-05,2]
[348603364,1736667040618,-500.0,9.835e-05,2]
[348603365,1736667040627,-500.0,9.835e-05,2]
[348603366,1736667040641,-500.0,9.835e-05,2]
[348603367,1736667040650,-500.0,9.835e-05,2]
[348603368,1736667040659,-500.0,9.835e-05,2]
[348603369,1736667040667,-649.54,9.835e-05,2]
[348603370,1736667040678,-799.04,9.835e-05,2]
[348603371,1736667040687,-500.0,9.835e-05,2]
[348603372,1736667040695,-500.0,9.835e-05,2]
[348603373,1736667040705,-500.0,9.835e-05,2]
[348603374,1736667040715,-849.46,9.835e-05,2]
[348603375,1736667040724,-500.0,9.835e-05,2]
[348603376,1736667040734,-735.55,9.835e-05,2]
[348603377,1736667040744,-500.0,9.835e-05,2]
[348603378,1736667040753,-500.0,9.835e-05,2]
[348603379,1736667040762,-500.0,9.835e-05,2]
[348603380,1736667040771,-500.0,9.835e-05,2]
[348603381,1736667040780,-327.06770995,9.835e-05,2]
[348603382,1736667040789,-500.0,9.835e-05,2]
[348603383,1736667040798,-231.46368057,9.835e-05,2]
[348603384,1736667040807,-500.0,9.835e-05,2]
[348603385,1736667040816,-500.0,9.835e-05,2]
[348603386,1736667040825,-887.28,9.835e-05,2]
[348603387,1736667040834,-500.0,9.835e-05,2]
[348603388,1736667040843,-500.0,9.835e-05,2]
[348603389,1736667040852,-808.9,9.835e-05,2]
[348603390,1736667040861,-570.07,9.835e-05,2]
[348603391,1736667040870,-830.85,9.835e-05,2]
[348603392,1736667040879,-500.0,9.835e-05,2]
[348603393,1736667040888,-500.0,9.835e-05,2]
[348603394,1736667040897,-892.42,9.835e-05,2]
[348603395,1736667040906,-500.0,9.835e-05,2]
[348603396,1736667040915,-500.0,9.835e-05,2]
[348603397,1736667040924,-500.0,9.835e-05,2]
[348603398,1736667040933,-500.0,9.835e-05,2]
[348603399,1736667040942,-500.0,9.835e-05,2]
[348603400,1736667040951,-932.06,9.835e-05,2]
[348603401,1736667040961,-500.0,9.835e-05,2]
[348603402,1736667040970,-540.94,9.835e-05,2]
[348603403,1736667040979,-500.0,9.835e-05,2]
[348603404,1736667040988,-500.0,9.835e-05,2]
[348603405,1736667040997,-500.0,9.835e-05,2]
[348603406,1736667041006,-761.91,9.835e-05,2]
[348603407,1736667041015,-756.44,9.835e-05,2]
[348603408,1736667041024,-816.1,9.835e-05,2]
[348603409,1736667041032,-500.0,9.835e-05,2]
[348603410,1736667041041,-500.0,9.835e-05,2]
[348603411,1736667041050,-639.6,9.835e-05,2]
[348603412,1736667041059,-771.9,9.835e-05,2]
[348603413,1736667041068,-784.46,9.835e-05,2]
[348603414,1736667041077,-661.99,9.835e-05,2]
[348603415,1736667041087,-500.0,9.835e-05,2]
[348603416,1736667041096,-500.0,9.835e-05,2]
[348603417,1736667041105,-500.0,9.835e-05,2]
[348603418,1736667041114,-615.1,9.835e-05,2]
[348603419,1736667041123,-698.67,9.835e-05,2]
[348603420,1736667041132,-537.18,9.835e-05,2]
[348603421,1736667041141,-501.04,9.835e-05,2]
[348603422,1736667041150,-1394.6,9.835e-05,2]
[348603423,1736667041159,-655.9,9.835e-05,2]
[348603424,1736667041168,-500.0,9.835e-05,2]
[348603425,1736667041177,-500.0,9.835e-05,2]
[348603426,1736667041186,-500.0,9.835e-05,2]
[348603427,1736667041195,-500.0,9.835e-05,2]
[348603428,1736667041204,-582.13,9.835e-05,2]
[348603429,1736667041215,-668.04,9.835e-05,2]
[348603430,1736667041224,-4381.55,9.835e-05,2]
[348603431,1736667041236,-903.65,9.835e-05,2]
[348603432,1736667041246,-2711.95,9.835e-05,2]
[348603433,1736667041255,-515.95,9.835e-05,2]
[348603434,1736667041266,-633.91,9.835e-05,2]
[348603435,1736667041275,-624.04,9.835e-05,2]
[348603436,1736667041285,-500.0,9.835e-05,2]
[348603437,1736667041295,-746.76,9.835e-05,2]
[348603438,1736667041304,-2853.92,9.835e-05,2]
[348603439,1736667041314,-500.0,9.835e-05,2]
[348603440,1736667041323,-500.0,9.835e-05,2]
[348603441,1736667041333,-570.29,9.835e-05,2]
[348603442,1736667041342,-837.01,9.835e-05,2]
[348603443,1736667041351,-500.0,9.835e-05,2]
[348603444,1736667041361,-763.16,9.835e-05,2]
[348603445,1736667041370,-1907.79,9.836e-05,2]
[348603446,1736667041379,-150.0,9.836e-05,2]
[348603447,1736667041390,-437.19,9.836e-05,2]
[348603448,1736667041399,-239.26,9.836e-05,2]
[348603449,1736667041408,-344.74,9.836e-05,2]
[348603450,1736667041418,-172.99,9.836e-05,2]
[348603451,1736667041429,-979.82,9.836e-05,2]
[348603452,1736667041438,-437.19,9.836e-05,2]
[348603453,1736667041448,-150.0,9.836e-05,2]
[348603454,1736667041457,-150.0,9.836e-05,2]
[348603455,1736667041467,-150.0,9.836e-05,2]
[348603456,1736667041476,-874.03,9.836e-05,2]
[348603457,1736667041486,-150.0,9.836e-05,2]
[348603458,1736667041495,-150.0,9.836e-05,2]
[348603459,1736667041510,-980.06,9.836e-05,2]
[348603460,1736667041519,-150.0,9.836e-05,2]
[348603461,1736667041528,-150.0,9.836e-05,2]
[348603462,1736667041538,-437.19,9.836e-05,2]
[348603463,1736667041547,-300.0,9.836e-05,2]
[348603464,1736667041557,-979.34,9.836e-05,2]
[348603465,1736667041566,-150.0,9.836e-05,2]
[348603466,1736667041575,-437.19,9.836e-05,2]
[348603467,1736667041584,-150.0,9.836e-05,2]
[348603468,1736667041593,-150.0,9.836e-05,2]
[348603469,1736667041601,-150.0,9.836e-05,2]
[348603470,1736667041610,-150.0,9.836e-05,2]
[348603471,1736667041619,-437.19,9.836e-05,2]
[348603472,1736667041629,-150.0,9.836e-05,2]
[348603473,1736667041641,-150.0,9.836e-05,2]
[348603474,1736667041650,-437.19,9.836e-05,2]
[348603475,1736667041659,-150.0,9.836e-05,2]
[348603476,1736667041668,-437.19,9.836e-05,2]
[348603477,1736667041678,-150.0,9.836e-05,2]
[348603478,1736667041687,-437.19,9.836e-05,2]
[348603479,1736667041698,-437.19,9.836e-05,2]
[348603480,1736667041708,-437.19,9.836e-05,2]
[348603481,1736667041717,-437.19,9.836e-05,2]
[348603482,1736667041726,-437.19,9.836e-05,2]
[348603483,1736667041735,-437.19,9.836e-05,2]
[348603484,1736667041744,-437.19,9.836e-05,2]
[348603485,1736667041753,-437.19,9.836e-05,2]
[348603486,1736667041764,-437.19,9.836e-05,2]
[348603487,1736667041774,-437.19,9.836e-05,2]
[348603488,1736667041785,-434.98,9.836e-05,2]
[348603489,1736667041794,-1000.0,9.836e-05,2]
[348603490,1736667041804,-150.0,9.863e-05,2]
[348603491,1736667041813,-150.0,9.863e-05,2]
[348603492,1736667041822,-150.0,9.863e-05,2]
[348603493,1736667041831,-150.0,9.863e-05,2]
[348603494,1736667041840,-150.0,9.863e-05,2]
[348603495,1736667041849,-421.04,9.87e-05,2]
[348603496,1736667041858,-150.0,9.88e-05,2]
[348603497,1736667041867,-150.0,9.894e-05,2]
[348603498,1736667041877,-150.0,9.897e-05,2]
[348603499,1736667041887,-150.0,9.9e-05,2]
[348603500,1736667041896,-400.0,9.9e-05,3]
[348603501,1736667041905,-1643.93600025,9.907e-05,2]
[348603502,1736667041914,-150.0,9.914e-05,2]
[348603503,1736667041923,-150.0,9.926e-05,2]
[348603504,1736667041932,-150.0,9.93e-05,2]
[348603505,1736667041941,-150.0,9.936e-05,2]
[348603506,1736667041950,-150.0,9.947e-05,2]
[348603507,1736667041959,-150.0,9.957e-05,2]
[348603508,1736667041968,-150.0,9.964e-05,2]
[348603509,1736667041977,-1385.2816,9.972e-05,2]
[348603510,1736667041986,-150.0,9.973e-05,2]
[348603511,1736667041995,-151.85407727,9.973e-05,2]
[348603512,1736667042004,-159.83968,9.973e-05,2]
[348603513,1736667042014,-500.0,9.973e-05,2]
[348603514,1736667042023,-150.0,9.981e-05,2]
[348603515,1736667042032,-30164.96892578,9.988e-05,2]
[348603516,1736667042041,-150.0,9.988e-05,2]
[348603517,1736667042050,-150.0,9.998e-05,2]
[348603518,1736667042059,-189.80888454,9.999e-05,2]
[348603519,1736667042068,-500.0,9.999e-05,2]
[348603520,1736667042078,-500.0,9.999e-05,2]
[348603521,1736667042087,-501.19180777,9.999e-05,2]
[348603522,1736667042097,-500.0,9.999e-05,2]
[348603523,1736667042107,-500.0,9.999e-05,2]
[348603524,1736667042117,-500.0,9.999e-05,2]
[348603525,1736667042127,-500.0,9.999e-05,2]
[348603526,1736667042136,-500.0,9.999e-05,2]
[348603527,1736667042145,-275.37591735,9.999e-05,2]
[348603528,1736667042154,-208.27996086,9.999e-05,2]
[348603529,1736667042163,-502.58153223,9.999e-05,2]
[348603530,1736667042172,-299.22679786,0.0001,2]
[348603531,1736667042181,-205.25,0.0001,2]
[348603532,1736667042190,-259890.08139672,0.0001,2]
[348603533,1736667042199,-900.0,0.0001,3]
[348603534,1736667042209,-821341.68481766,0.0001,2]
[348603535,1736667042218,-657412.73615801,0.0001,2]
[348603536,1736667042227,-500.0,0.0001,2]
[348603537,1736667042236,-251.26937233,0.0001,2]
[348603538,1736667042245,-1643.93600049,0.0001,2]
[348603539,1736667042254,-1000.0,0.00010009,2]
[348603540,1736667042263,-1000.0,0.00010009,2]
[348603541,1736667042273,-1000.0,0.00010009,2]
[348603542,1736667042282,-1000.0,0.00010009,2]
[348603543,1736667042291,-1000.0,0.00010009,2]
[348603544,1736667042300,-1000.0,0.00010009,2]
[348603545,1736667042309,-1000.0,0.00010009,2]
[348603546,1736667042318,-1005.49893292,0.00010009,2]
[348603547,1736667042328,-150.0,0.00010009,2]
[348603548,1736667042337,-1643.93600025,0.00010014,2]
[348603549,1736667042346,-150.0,0.00010015,2]
[348603550,1736667042355,-150.0,0.0001002,2]
[348603551,1736667042364,-150.0,0.00010032,2]
[348603552,1736667042373,-150.0,0.00010046,2]
[348603553,1736667042384,-150.0,0.00010046,2]
[348603554,1736667042393,-150.0,0.00010048,2]
[348603555,1736667042402,-150.0,0.00010051,2]
[348603556,1736667042411,-150.0,0.00010065,2]
[348603557,1736667042420,-1000.0,0.00010068,2]
[348603558,1736667042430,-500.0,0.00010069,2]
[348603559,1736667042439,-500.0,0.00010069,2]
[348603560,1736667042448,-500.0,0.00010069,2]
[348603561,1736667042457,-500.0,0.00010069,2]
[348603562,1736667042467,-500.0,0.00010069,2]
[348603563,1736667042477,-500.0,0.00010069,2]
[348603564,1736667042487,-500.0,0.00010069,2]
[348603565,1736667042497,-500.0,0.00010069,2]
[348603566,1736667042506,-500.0,0.00010069,2]
[348603567,1736667042516,-500.0,0.00010069,2]
[348603568,1736667042525,-500.0,0.00010069,2]
[348603569,1736667042536,-500.0,0.00010069,2]
[348603570,1736667042545,-500.0,0.00010069,2]
[348603571,1736667042555,-500.0,0.00010069,2]
[348603572,1736667042564,-500.0,0.00010069,2]
[348603573,1736667042574,-504.78697576,0.00010069,2]
[348603574,1736667042583,-545.63,0.00010069,2]
[348603575,1736667042593,-500.0,0.00010069,2]
[348603576,1736667042603,-500.0,0.00010069,2]
[348603577,1736667042612,-500.0,0.00010069,2]
[348603578,1736667042621,-500.0,0.00010069,2]
[348603579,1736667042634,-500.0,0.00010069,2]
[348603580,1736667042643,-500.0,0.00010069,2]
[348603581,1736667042653,-500.0,0.00010069,2]
[348603582,1736667042662,-500.0,0.00010069,2]
[348603583,1736667042672,-500.0,0.00010069,2]
[348603584,1736667042681,-500.0,0.00010069,2]
[348603585,1736667042691,-500.0,0.00010069,2]
[348603586,1736667042700,-502.45355514,0.00010069,2]
[348603587,1736667042710,-500.0,0.00010069,2]
[348603588,1736667042720,-500.0,0.00010069,2]
[348603589,1736667042729,-500.0,0.00010069,2]
[348603590,1736667042739,-500.0,0.00010069,2]
[348603591,1736667042748,-500.0,0.00010069,2]
[348603592,1736667042757,-500.0,0.00010069,2]
[348603593,1736667042766,-500.0,0.00010069,2]
[348603594,1736667042775,-500.0,0.00010069,2]
[348603595,1736667042784,-500.0,0.00010069,2]
[348603596,1736667042794,-500.0,0.00010069,2]
[348603597,1736667042804,-500.0,0.00010069,2]
[348603598,1736667042814,-500.0,0.00010069,2]
[348603599,1736667042823,-500.0,0.00010069,2]
[348603600,1736667042832,-500.0,0.00010069,2]
[348603601,1736667042842,-500.0,0.00010069,2]
[348603602,1736667042852,-500.0,0.00010069,2]
[348603603,1736667042862,-500.0,0.00010069,2]
[348603604,1736667042871,-500.0,0.00010069,2]
[348603605,1736667042880,-500.0,0.00010069,2]
[348603606,1736667042890,-500.0,0.00010069,2]
[348603607,1736667042899,-500.0,0.00010069,2]
[348603608,1736667042910,-500.0,0.00010069,2]
[348603609,1736667042919,-339.76727888,0.00010069,2]
[348603610,1736667042928,-500.0,0.00010069,2]
[348603611,1736667042937,-500.0,0.00010069,2]
[348603612,1736667042946,-500.0,0.00010069,2]
[348603613,1736667042956,-500.0,0.00010069,2]
[348603614,1736667042965,-500.0,0.00010069,2]
[348603615,1736667042974,-500.0,0.00010069,2]
[348603616,1736667042983,-190.26021061,0.00010069,2]
[348603617,1736667042993,-500.0,0.00010069,2]
[348603618,1736667043002,-500.0,0.00010069,2]
[348603619,1736667043011,-503.21358854,0.00010069,2]
[348603620,1736667043020,-526.93,0.00010069,2]
[348603621,1736667043030,-500.0,0.00010069,2]
[348603622,1736667043040,-500.0,0.00010069,2]
[348603623,1736667043049,-509.91,0.00010069,2]
[348603624,1736667043059,-540.29,0.00010069,2]
[348603625,1736667043069,-500.0,0.00010069,2]
[348603627,1736667043078,-500.0,0.00010069,2]
[348603628,1736667043087,-500.0,0.00010069,2]
[348603629,1736667043096,-500.0,0.00010069,2]
[348603630,1736667043105,-500.0,0.00010069,2]
[348603631,1736667043114,-500.0,0.00010069,2]
[348603632,1736667043124,-500.0,0.00010069,2]
[348603633,1736667043134,-500.0,0.00010069,2]
[348603634,1736667043143,-500.0,0.00010069,2]
[348603635,1736667043152,-500.0,0.00010069,2]
[348603636,1736667043162,-500.0,0.00010069,2]
[348603637,1736667043172,-500.0,0.00010069,2]
[348603638,1736667043181,-500.0,0.00010069,2]
[348603639,1736667043190,-500.0,0.00010069,2]
[348603640,1736667043200,-457.9884251,0.00010069,2]
[348603641,1736667043210,-500.0,0.00010069,2]
[348603642,1736667043219,-500.0,0.00010069,2]
[348603643,1736667043228,-500.0,0.00010069,2]
[348603644,1736667043237,-500.0,0.00010069,2]
[348603645,1736667043247,-500.0,0.00010069,2]
[348603646,1736667043256,-500.0,0.00010069,2]
[348603647,1736667043265,-500.0,0.00010069,2]
[348603648,1736667043274,-836.34,0.00010069,2]
[348603649,1736667043283,-500.0,0.00010069,2]
[348603652,1736667043292,-500.0,0.00010069,2]
[348603655,1736667043301,-500.0,0.00010069,2]
[348603657,1736667043310,-500.0,0.00010069,2]
[348603661,1736667043320,-500.0,0.00010069,2]
[348603663,1736667043329,-500.0,0.00010069,2]
[348603666,1736667043338,-334.0424685,0.00010069,2]
[348603668,1736667043347,-602.09012762,0.00010069,2]
[348603670,1736667043356,-500.0,0.00010069,2]
[348603672,1736667043365,-3000.0,0.00010069,2]
[348603674,1736667043374,-751.36,0.00010069,2]
[348603675,1736667043383,-505.08,0.00010069,2]
[348603676,1736667043392,-500.0,0.00010069,2]
[348603677,1736667043402,-691.57,0.00010069,2]
[348603678,1736667043411,-500.0,0.00010069,2]
[348603679,1736667043421,-500.0,0.00010069,2]
[348603680,1736667043431,-1015.42,0.00010069,2]
[348603681,1736667043440,-500.0,0.00010069,2]
[348603682,1736667043450,-500.0,0.00010069,2]
[348603683,1736667043459,-500.0,0.00010069,2]
[348603684,1736667043469,-500.0,0.00010069,2]
[348603686,1736667043478,-533.72,0.00010069,2]
[348603688,1736667043488,-500.0,0.00010069,2]
[348603689,1736667043497,-500.0,0.00010069,2]
[348603690,1736667043506,-1045.02,0.00010069,2]
[348603691,1736667043515,-500.0,0.00010069,2]
[348603692,1736667043524,-806.48,0.00010069,2]
[348603693,1736667043710,-500.0,0.00010069,2]
[348603694,1736667043720,-534.86,0.00010069,2]
[348603695,1736667043729,-500.0,0.00010069,2]
[348603696,1736667043738,-1185.19,0.00010069,2]
[348603698,1736667043747,-1307.51,0.00010069,2]
[348603700,1736667043756,-500.0,0.00010069,2]
[348603701,1736667043765,-500.0,0.00010069,2]
[348603703,1736667043774,-500.0,0.00010069,2]
[348603705,1736667043784,-1472.45,0.0001007,2]
[348603707,1736667043793,-1539.3,0.0001007,2]
[348603708,1736667043802,-2243.62,0.0001007,2]
[348603710,1736667043811,-6122.95,0.0001007,2]
[348603712,1736667043820,-1039.19,0.0001007,2]
[348603714,1736667043829,-740.68,0.0001007,2]
[348603715,1736667043838,-807.26,0.0001007,2]
[348603717,1736667043847,-2507.28,0.0001007,2]
[348603719,1736667043857,-500.0,0.0001007,2]
[348603721,1736667043866,-1678.74,0.0001007,2]
[348603723,1736667043875,-852.32,0.0001007,2]
[348603724,1736667043884,-500.0,0.0001007,2]
[348603725,1736667043893,-1000.0,0.0001007,2]
[348603726,1736667043902,-1096.05,0.0001007,2]
[348603727,1736667043911,-856.61,0.0001007,2]
[348603728,1736667043920,-704.94,0.00010071,2]
[348603729,1736667043930,-500.0,0.00010071,2]
[348603730,1736667043939,-677.68,0.00010071,2]
[348603731,1736667043948,-753.88,0.00010071,2]
[348603732,1736667043957,-688.74,0.00010071,2]
[348603733,1736667043967,-500.0,0.00010071,2]
[348603734,1736667043975,-549.46,0.00010071,2]
[348603735,1736667043984,-500.0,0.00010071,2]
[348603736,1736667043993,-560.82,0.00010071,2]
[348603737,1736667044002,-500.0,0.00010071,2]
[348603738,1736667044011,-500.0,0.00010071,2]
[348603739,1736667044020,-500.0,0.00010071,2]
[348603740,1736667044029,-525.31,0.00010071,2]
[348603741,1736667044037,-500.0,0.00010071,2]
[348603742,1736667044047,-723.97,0.00010071,2]
[348603743,1736667044056,-500.0,0.00010071,2]
[348603744,1736667044065,-500.0,0.00010071,2]
[348603745,1736667044073,-500.0,0.00010071,2]
[348603746,1736667044083,-783.53,0.00010071,2]
[348603747,1736667044091,-500.0,0.00010071,2]
[348603748,1736667044100,-500.0,0.00010071,2]
[348603749,1736667044109,-500.0,0.00010071,2]
[348603750,1736667044118,-853.38,0.00010071,2]
[348603751,1736667044127,-500.0,0.00010071,2]
[348603752,1736667044138,-529.78,0.00010071,2]
[348603753,1736667044147,-576.25,0.00010071,2]
[348603754,1736667044156,-500.0,0.00010071,2]
[348603755,1736667044166,-681.57,0.00010071,2]
[348603756,1736667044175,-648.72,0.00010071,2]
[348603757,1736667044185,-500.0,0.00010071,2]
[348603758,1736667044194,-680.63,0.00010071,2]
[348603759,1736667044204,-500.0,0.00010071,2]
[348603760,1736667044213,-555.22,0.00010071,2]
[348603761,1736667044223,-577.37,0.00010071,2]
[348603762,1736667044232,-500.0,0.00010071,2]
[348603763,1736667044241,-689.48,0.00010071,2]
[348603764,1736667044251,-500.0,0.00010071,2]
[348603765,1736667044260,-500.0,0.00010071,2]
[348603766,1736667044269,-500.0,0.00010071,2]
[348603767,1736667044278,-655.47,0.00010071,2]
[348603768,1736667044287,-724.04,0.00010071,2]
[348603769,1736667044297,-500.0,0.00010071,2]
[348603770,1736667044306,-500.0,0.00010071,2]
[348603771,1736667044316,-500.0,0.00010071,2]
[348603772,1736667044325,-682.89,0.00010071,2]
[348603773,1736667044335,-886.81,0.00010071,2]
[348603774,1736667044344,-500.0,0.00010071,2]
[348603775,1736667044353,-500.0,0.00010071,2]
[348603776,1736667044363,-500.0,0.00010071,2]
[348603777,1736667044372,-500.0,0.00010071,2]
[348603778,1736667044382,-559.73,0.00010071,2]
[348603779,1736667044392,-542.39,0.00010071,2]
[348603780,1736667044402,-979.06,0.00010071,2]
[348603781,1736667044411,-816.58,0.00010071,2]
[348603782,1736667044420,-955.54,0.00010071,2]
[348603783,1736667044430,-931.46,0.00010071,2]
[348603784,1736667044439,-500.0,0.00010071,2]
[348603785,1736667044447,-528.71,0.00010071,2]
[348603786,1736667044457,-500.0,0.00010071,2]
[348603787,1736667044466,-500.0,0.00010071,2]
[348603788,1736667044475,-500.0,0.00010071,2]
[348603789,1736667044485,-500.0,0.00010071,2]
[348603790,1736667044494,-500.0,0.00010071,2]
[348603791,1736667044503,-2293.17,0.00010071,2]
[348603792,1736667044512,-614.31,0.00010071,2]
[348603793,1736667044522,-500.0,0.00010071,2]
[348603794,1736667044532,-500.0,0.00010071,2]
[348603795,1736667044543,-1906.57,0.00010071,2]
[348603796,1736667044552,-1140.71,0.00010072,2]
[348603797,1736667044562,-985.55,0.00010072,2]
[348603798,1736667044571,-1243.23,0.00010072,2]
[348603799,1736667044582,-856.77,0.00010072,2]
[348603800,1736667044592,-2013.23,0.00010072,2]
[348603802,1736667044601,-1135.39,0.00010072,2]
[348603803,1736667044610,-2416.87,0.00010072,2]
[348603804,1736667044620,-3164.76,0.00010072,2]
[348603806,1736667044631,-500.0,0.00010072,2]
[348603807,1736667044642,-500.0,0.00010072,2]
[348603808,1736667044651,-500.0,0.00010072,2]
[348603809,1736667044660,-500.0,0.00010072,2]
[348603810,1736667044670,-1443.41,0.00010072,2]
[348603811,1736667044679,-500.0,0.00010072,2]
[348603812,1736667044690,-500.0,0.00010072,2]
[348603813,1736667044700,-500.0,0.00010072,2]
[348603814,1736667044713,-3815.79,0.00010072,2]
[348603815,1736667044723,-500.0,0.00010072,2]
[348603816,1736667044733,-500.0,0.00010072,2]
[348603817,1736667044742,-527.52033851,0.00010072,2]
[348603818,1736667044751,-500.0,0.00010072,2]
[348603819,1736667044762,-500.0,0.00010072,2]
[348603820,1736667044771,-500.0,0.00010072,2]
[348603821,1736667044780,-500.0,0.00010072,2]
[348603822,1736667044790,-500.0,0.00010072,2]
[348603823,1736667044800,-500.0,0.00010072,2]
[348603824,1736667044812,-1152.21,0.00010072,2]
[348603825,1736667044821,-500.0,0.00010072,2]
[348603826,1736667044831,-696.73,0.00010072,2]
[348603827,1736667044840,-500.0,0.00010072,2]
[348603828,1736667044849,-1011.22,0.00010072,2]
[348603829,1736667044859,-514.87,0.00010072,2]
[348603830,1736667044869,-500.0,0.00010072,2]
[348603831,1736667044878,-658.24,0.00010072,2]
[348603832,1736667044888,-500.0,0.00010072,2]
[348603833,1736667044897,-686.12,0.00010072,2]
[348603834,1736667044907,-534.04,0.00010072,2]
[348603835,1736667044918,-500.0,0.00010072,2]
[348603836,1736667044927,-1459.5,0.00010072,2]
[348603837,1736667044936,-791.96,0.00010072,2]
[348603838,1736667044945,-500.0,0.00010072,2]
[348603839,1736667044954,-500.0,0.00010072,2]
[348603840,1736667044963,-500.0,0.00010072,2]
[348603841,1736667044972,-1493.23,0.00010072,2]
[348603842,1736667044981,-901.06,0.00010072,2]
[348603843,1736667044990,-507.1,0.00010072,2]
[348603844,1736667044999,-1868.15,0.00010072,2]
[348603845,1736667045008,-515.33,0.00010072,2]
[348603846,1736667045016,-500.0,0.00010072,2]
[348603847,1736667045026,-916.02,0.00010072,2]
[348603848,1736667045035,-500.0,0.00010072,2]
[348603849,1736667045044,-1355.39,0.00010072,2]
[348603850,1736667045053,-645.68,0.00010072,2]
[348603851,1736667045062,-500.0,0.00010072,2]
[348603852,1736667045071,-3514.58,0.00010072,2]
[348603853,1736667045080,-500.0,0.00010072,2]
[348603854,1736667045089,-1548.15,0.00010072,2]
[348603855,1736667045100,-2255.89,0.00010072,2]
[348603856,1736667045109,-1366.82,0.00010072,2]
[348603857,1736667045120,-1534.83,0.00010072,2]
[348603858,1736667045130,-500.0,0.00010072,2]
[348603859,1736667045139,-832.36,0.00010072,2]
[348603860,1736667045148,-1983.26,0.00010072,2]
[348603861,1736667045160,-2758.716,0.00010073,2]
[348603862,1736667045171,-166.653,0.00010073,2]
[348603863,1736667045182,-150.0,0.00010082,2]
[348603864,1736667045193,-150.0,0.00010082,2]
[348603865,1736667045203,-150.0,0.00010082,2]
[348603866,1736667045212,-151.0,0.00010083,2]
[348603867,1736667045223,-150.0,0.00010083,2]
[348603868,1736667045233,-3253.45,0.00010094,2]
[348603869,1736667045242,-1072.73,0.00010094,2]